[Event "Titled Tuesday Blitz March 07 Early 2023"]
[White "Wagner, Dennis"]
[Black "Degenbaev, Aziz"]
[WhiteFideId "24650684"]
[BlackFideId "13802640"]
[WhiteElo "2470"]
[BlackElo "2152"]
[Result "1-0"]
[Round "10"]
[TimeControl "180+2"]
[Date "2023.03.07"]
[WhiteClock "0:00:03"]
[BlackClock "0:00:03"]

1. Nf3 {[%clk 0:03:00]}  Nf6 {[%clk 0:03:00]} 2. b3 {[%clk 0:02:59]}  g6 {[%clk 0:02:51]} 3. Bb2 {[%clk 0:02:58]}  Bg7 {[%clk 0:02:52]} 4. g3 {[%clk 0:02:59]}  O-O {[%clk 0:02:47]} 5. Bg2 {[%clk 0:02:58]}  c5 {[%clk 0:02:48]} 6. c4 {[%clk 0:02:54]}  d6 {[%clk 0:02:45]} 7. O-O {[%clk 0:02:53]}  e5 {[%clk 0:02:40]} 8. d3 {[%clk 0:02:52]}  Nc6 {[%clk 0:02:37]} 9. Nc3 {[%clk 0:02:52]}  h6 {[%clk 0:02:21]} 10. Nd2 {[%clk 0:02:51]}  Be6 {[%clk 0:02:15]} 11. Nd5 {[%clk 0:02:48]}  Qd7 {[%clk 0:02:10]} 12. a3 {[%clk 0:02:35]}  Bh3 {[%clk 0:01:57]} 13. Nxf6+ {[%clk 0:02:10]}  Bxf6 {[%clk 0:01:56]} 14. Ne4 {[%clk 0:02:10]}  Be7 {[%clk 0:01:57]} 15. e3 {[%clk 0:02:07]}  Bxg2 {[%clk 0:01:52]} 16. Kxg2 {[%clk 0:02:08]}  d5 {[%clk 0:01:49]} 17. Nc3 {[%clk 0:01:52]}  d4 {[%clk 0:01:18]} 18. Nd5 {[%clk 0:01:52]}  f5 {[%clk 0:01:06]} 19. exd4 {[%clk 0:01:52]}  exd4 {[%clk 0:01:04]} 20. Re1 {[%clk 0:01:43]}  Bd6 {[%clk 0:01:04]} 21. Bc1 {[%clk 0:01:36]}  Kh7 {[%clk 0:00:56]} 22. Ra2 {[%clk 0:01:27]}  Ne7 {[%clk 0:00:46]} 23. Qf3 {[%clk 0:01:19]}  Ng8 {[%clk 0:00:27]} 24. Rae2 {[%clk 0:01:07]}  Rae8 {[%clk 0:00:27]} 25. h4 {[%clk 0:00:50]}  Rxe2 {[%clk 0:00:19]} 26. Qxe2 {[%clk 0:00:48]}  Nf6 {[%clk 0:00:18]} 27. Qe6 {[%clk 0:00:30]}  Qxe6 {[%clk 0:00:14]} 28. Rxe6 {[%clk 0:00:29]}  Nxd5 {[%clk 0:00:14]} 29. Rxd6 {[%clk 0:00:26]}  Nf6 {[%clk 0:00:11]} 30. Bf4 {[%clk 0:00:24]}  Kg8 {[%clk 0:00:06]} 31. Be5 {[%clk 0:00:20]}  Ng4 {[%clk 0:00:06]} 32. Rxg6+ {[%clk 0:00:20]}  Kf7 {[%clk 0:00:06]} 33. Rg7+ {[%clk 0:00:21]}  Ke6 {[%clk 0:00:06]} 34. Bf4 {[%clk 0:00:20]}  Rf7 {[%clk 0:00:05]} 35. Rg6+ {[%clk 0:00:14]}  Rf6 {[%clk 0:00:03]} 36. Rg8 {[%clk 0:00:14]}  Rf7 {[%clk 0:00:02]} 37. h5 {[%clk 0:00:15]}  Re7 {[%clk 0:00:01]} 38. Rg6+ {[%clk 0:00:14]}  Kf7 {[%clk 0:00:02]} 39. Bxh6 {[%clk 0:00:14]}  Re2 {[%clk 0:00:02]} 40. Kf1 {[%clk 0:00:03]}  Rxf2+ {[%clk 0:00:02]} 41. Ke1 {[%clk 0:00:04]}  Rb2 {[%clk 0:00:02]} 42. Bf4 {[%clk 0:00:03]}  Rxb3 {[%clk 0:00:03]} 43. Rg5 {[%clk 0:00:04]}  Kf6 {[%clk 0:00:02]} 44. Rg8 {[%clk 0:00:03]}  Rxd3 {[%clk 0:00:01]} 45. h6 {[%clk 0:00:03]}  Nxh6 {[%clk 0:00:02]} 46. Bxh6 {[%clk 0:00:03]}  Rxa3 {[%clk 0:00:02]} 47. Bf4 {[%clk 0:00:03]}  Rc3 {[%clk 0:00:02]} 48. Rf8+ {[%clk 0:00:03]}  Ke7 {[%clk 0:00:02]} 49. Ra8 {[%clk 0:00:03]}  Rxc4 {[%clk 0:00:02]} 50. Rxa7 {[%clk 0:00:04]}  Rb4 {[%clk 0:00:03]} 51. Kd2 {[%clk 0:00:04]}  Ke6 {[%clk 0:00:03]} 52. Kd3 {[%clk 0:00:04]}  Kd5 {[%clk 0:00:04]} 53. Ra5 {[%clk 0:00:04]}  Rb3+ {[%clk 0:00:04]} 54. Kc2 {[%clk 0:00:04]}  Rb6 {[%clk 0:00:03]} 55. Ra8 {[%clk 0:00:04]}  Kc4 {[%clk 0:00:03]} 56. Ra4+ {[%clk 0:00:04]}  Kd5 {[%clk 0:00:02]} 57. Bd2 {[%clk 0:00:03]}  Ke4 {[%clk 0:00:02]} 58. Bf4 {[%clk 0:00:03]}  Kd5 {[%clk 0:00:02]} 59. Ra1 {[%clk 0:00:03]}  Re6 {[%clk 0:00:02]} 60. Rh1 {[%clk 0:00:03]}  b5 {[%clk 0:00:02]} 61. Rh5 {[%clk 0:00:02]}  Ke4 {[%clk 0:00:03]} 62. Rh8 {[%clk 0:00:02]}  Ra6 {[%clk 0:00:03]} 63. Re8+ {[%clk 0:00:01]}  Kd5 {[%clk 0:00:04]} 64. Re5+ {[%clk 0:00:02]}  Kc4 {[%clk 0:00:05]} 65. Rxf5 {[%clk 0:00:02]}  Ra2+ {[%clk 0:00:05]} 66. Kb1 {[%clk 0:00:03]}  Rg2 {[%clk 0:00:06]} 67. Bd6 {[%clk 0:00:04]}  d3 {[%clk 0:00:04]} 68. Rxc5+ {[%clk 0:00:04]}  Kd4 {[%clk 0:00:04]} 69. Rxb5 {[%clk 0:00:05]}  d2 {[%clk 0:00:05]} 70. Kc2 {[%clk 0:00:04]}  Ke3 {[%clk 0:00:05]} 71. Bf4+ {[%clk 0:00:04]}  Kd4 {[%clk 0:00:03]} 72. Rb8 {[%clk 0:00:03]} 1-0


[Site "https://www.chess.com"]

[Event "Titled Tuesday Blitz March 07 Early 2023"]
[White "Skliarov, Viktor"]
[Black "Rottenwohrer Suarez, Juan"]
[WhiteFideId "14106736"]
[BlackFideId "32068182"]
[WhiteElo "2289"]
[BlackElo "2174"]
[Result "0-1"]
[Round "10"]
[TimeControl "180+2"]
[Date "2023.03.07"]
[WhiteClock "0:00:02"]
[BlackClock "0:00:03"]

1. e4 {[%clk 0:03:00]}  c5 {[%clk 0:03:00]} 2. Nf3 {[%clk 0:02:59]}  g6 {[%clk 0:03:00]} 3. d4 {[%clk 0:02:59]}  cxd4 {[%clk 0:03:00]} 4. Qxd4 {[%clk 0:03:00]}  Nf6 {[%clk 0:03:00]} 5. e5 {[%clk 0:02:58]}  Nc6 {[%clk 0:02:58]} 6. Qa4 {[%clk 0:02:58]}  Nd5 {[%clk 0:02:58]} 7. Qe4 {[%clk 0:02:57]}  Nb6 {[%clk 0:02:58]} 8. Nc3 {[%clk 0:02:52]}  d5 {[%clk 0:02:58]} 9. exd6 {[%clk 0:02:50]}  Bf5 {[%clk 0:02:58]} 10. dxe7 {[%clk 0:02:47]}  Bxe7 {[%clk 0:02:58]} 11. Qf4 {[%clk 0:02:25]}  O-O {[%clk 0:02:46]} 12. Bb5 {[%clk 0:02:11]}  Nb4 {[%clk 0:02:43]} 13. O-O {[%clk 0:01:44]}  Nxc2 {[%clk 0:02:41]} 14. Rb1 {[%clk 0:01:44]}  Nb4 {[%clk 0:02:37]} 15. Qh6 {[%clk 0:01:27]}  Bxb1 {[%clk 0:01:51]} 16. Nxb1 {[%clk 0:01:26]}  Qd5 {[%clk 0:01:42]} 17. Nc3 {[%clk 0:01:23]}  Qh5 {[%clk 0:01:40]} 18. Qxh5 {[%clk 0:01:12]}  gxh5 {[%clk 0:01:40]} 19. Bh6 {[%clk 0:01:08]}  Rfd8 {[%clk 0:01:37]} 20. Re1 {[%clk 0:01:08]}  Bf6 {[%clk 0:01:34]} 21. h3 {[%clk 0:00:59]}  Nd3 {[%clk 0:01:28]} 22. Re2 {[%clk 0:00:43]}  a6 {[%clk 0:01:01]} 23. Ne4 {[%clk 0:00:34]}  Bg7 {[%clk 0:00:57]} 24. Bxg7 {[%clk 0:00:28]}  Kxg7 {[%clk 0:00:54]} 25. Bxd3 {[%clk 0:00:28]}  Rxd3 {[%clk 0:00:54]} 26. Nc5 {[%clk 0:00:28]}  Rd1+ {[%clk 0:00:50]} 27. Kh2 {[%clk 0:00:29]}  Nd7 {[%clk 0:00:50]} 28. Nxb7 {[%clk 0:00:25]}  Rb8 {[%clk 0:00:28]} 29. Na5 {[%clk 0:00:24]}  Nf6 {[%clk 0:00:21]} 30. Nc4 {[%clk 0:00:21]}  Re8 {[%clk 0:00:20]} 31. Rc2 {[%clk 0:00:20]}  Ra1 {[%clk 0:00:17]} 32. b3 {[%clk 0:00:20]}  Nd5 {[%clk 0:00:15]} 33. Nd4 {[%clk 0:00:18]}  Nb4 {[%clk 0:00:13]} 34. Rd2 {[%clk 0:00:18]}  Rxa2 {[%clk 0:00:13]} 35. Rxa2 {[%clk 0:00:17]}  Nxa2 {[%clk 0:00:13]} 36. Nc6 {[%clk 0:00:16]}  Nc1 {[%clk 0:00:11]} 37. N4a5 {[%clk 0:00:13]}  Re2 {[%clk 0:00:09]} 38. Kg3 {[%clk 0:00:11]}  Rb2 {[%clk 0:00:09]} 39. Nd4 {[%clk 0:00:10]}  Nd3 {[%clk 0:00:09]} 40. f4 {[%clk 0:00:06]}  Ne1 {[%clk 0:00:09]} 41. Nc4 {[%clk 0:00:05]}  Rxg2+ {[%clk 0:00:08]} 42. Kh4 {[%clk 0:00:06]}  Kh6 {[%clk 0:00:07]} 43. Ne3 {[%clk 0:00:05]}  Rb2 {[%clk 0:00:02]} 44. Nef5+ {[%clk 0:00:06]}  Kg6 {[%clk 0:00:03]} 45. Ne7+ {[%clk 0:00:05]}  Kf6 {[%clk 0:00:03]} 46. Nd5+ {[%clk 0:00:05]}  Kg7 {[%clk 0:00:03]} 47. Kxh5 {[%clk 0:00:06]}  Nd3 {[%clk 0:00:02]} 48. Nf5+ {[%clk 0:00:06]}  Kf8 {[%clk 0:00:02]} 49. Kg5 {[%clk 0:00:05]}  Rxb3 {[%clk 0:00:02]} 50. Nf6 {[%clk 0:00:05]}  Rb5 {[%clk 0:00:02]} 51. Nxh7+ {[%clk 0:00:05]}  Ke8 {[%clk 0:00:02]} 52. Nf6+ {[%clk 0:00:05]}  Kd8 {[%clk 0:00:03]} 53. Ne4 {[%clk 0:00:04]}  a5 {[%clk 0:00:02]} 54. Nd6 {[%clk 0:00:05]}  Rd5 {[%clk 0:00:02]} 55. Nxf7+ {[%clk 0:00:04]}  Ke8 {[%clk 0:00:03]} 56. Nd6+ {[%clk 0:00:04]}  Kf8 {[%clk 0:00:03]} 57. Nc4 {[%clk 0:00:04]}  a4 {[%clk 0:00:03]} 58. Kf6 {[%clk 0:00:03]}  Rc5 {[%clk 0:00:03]} 59. Ne5 {[%clk 0:00:02]}  Nxe5 {[%clk 0:00:01]} 60. fxe5 {[%clk 0:00:02]}  a3 {[%clk 0:00:02]} 61. e6 {[%clk 0:00:02]}  Rxf5+ {[%clk 0:00:02]} 62. Kxf5 {[%clk 0:00:02]}  a2 {[%clk 0:00:02]} 63. e7+ {[%clk 0:00:01]}  Kxe7 {[%clk 0:00:02]} 64. Kg4 {[%clk 0:00:02]}  a1=Q {[%clk 0:00:03]} 0-1


[Site "https://www.chess.com"]

[Event "Titled Tuesday Blitz March 07 Early 2023"]
[White "Matveeva, Olga"]
[Black "Yelisieiev, Yevhenii"]
[WhiteFideId "24107018"]
[BlackFideId "14139642"]
[WhiteElo "2056"]
[BlackElo "2447"]
[Result "0-1"]
[Round "10"]
[TimeControl "180+2"]
[Date "2023.03.07"]
[WhiteClock "0:00:01"]
[BlackClock "0:00:14"]

1. d4 {[%clk 0:03:00]}  d6 {[%clk 0:03:00]} 2. Nf3 {[%clk 0:03:00]}  Nf6 {[%clk 0:03:00]} 3. g3 {[%clk 0:03:00]}  Nbd7 {[%clk 0:03:00]} 4. Bg2 {[%clk 0:02:59]}  e5 {[%clk 0:03:01]} 5. dxe5 {[%clk 0:02:49]}  dxe5 {[%clk 0:03:02]} 6. O-O {[%clk 0:02:46]}  Bc5 {[%clk 0:02:48]} 7. b3 {[%clk 0:02:42]}  O-O {[%clk 0:02:38]} 8. Bb2 {[%clk 0:02:42]}  Re8 {[%clk 0:02:37]} 9. Nc3 {[%clk 0:02:35]}  e4 {[%clk 0:02:24]} 10. Nd4 {[%clk 0:02:14]}  c6 {[%clk 0:02:18]} 11. Na4 {[%clk 0:02:08]}  Bf8 {[%clk 0:02:17]} 12. c4 {[%clk 0:01:59]}  Ne5 {[%clk 0:02:09]} 13. Qc2 {[%clk 0:01:50]}  e3 {[%clk 0:02:03]} 14. f3 {[%clk 0:01:31]}  Qc7 {[%clk 0:02:02]} 15. Rad1 {[%clk 0:01:26]}  g6 {[%clk 0:01:57]} 16. c5 {[%clk 0:01:04]}  Nd5 {[%clk 0:01:28]} 17. a3 {[%clk 0:00:55]}  h5 {[%clk 0:00:52]} 18. h4 {[%clk 0:00:27]}  Nd7 {[%clk 0:00:43]} 19. Kh2 {[%clk 0:00:20]}  Be7 {[%clk 0:00:40]} 20. f4 {[%clk 0:00:09]}  N7f6 {[%clk 0:00:39]} 21. b4 {[%clk 0:00:07]}  Ng4+ {[%clk 0:00:38]} 22. Kg1 {[%clk 0:00:08]}  Bf6 {[%clk 0:00:35]} 23. Nc3 {[%clk 0:00:05]}  Nxc3 {[%clk 0:00:29]} 24. Bxc3 {[%clk 0:00:04]}  Bd7 {[%clk 0:00:28]} 25. Qb2 {[%clk 0:00:04]}  Kg7 {[%clk 0:00:19]} 26. Nb5 {[%clk 0:00:04]}  cxb5 {[%clk 0:00:19]} 27. Bxf6+ {[%clk 0:00:03]}  Nxf6 {[%clk 0:00:19]} 28. Rd6 {[%clk 0:00:02]}  Re6 {[%clk 0:00:19]} 29. Rfd1 {[%clk 0:00:01]}  Bc6 {[%clk 0:00:17]} 30. Rxe6 {[%clk 0:00:01]}  fxe6 {[%clk 0:00:17]} 31. Rd6 {[%clk 0:00:01]}  Bxg2 {[%clk 0:00:17]} 32. Kxg2 {[%clk 0:00:01]}  Re8 {[%clk 0:00:16]} 33. Kh3 {[%clk 0:00:01]}  Kf7 {[%clk 0:00:16]} 34. Qe5 {[%clk 0:00:01]}  Qe7 {[%clk 0:00:15]} 35. Qg5 {[%clk 0:00:01]}  Ng8 {[%clk 0:00:14]} 36. Qh6 {[%clk 0:00:01]}  Nxh6 {[%clk 0:00:14]} 0-1


[Site "https://www.chess.com"]

[Event "Titled Tuesday Blitz March 07 Early 2023"]
[White "Delorme, Alban"]
[Black "Janaszak, Dawid"]
[WhiteFideId "623636"]
[BlackFideId "1119206"]
[WhiteElo "2196"]
[BlackElo "2220"]
[Result "0-1"]
[Round "10"]
[TimeControl "180+2"]
[Date "2023.03.07"]
[WhiteClock "0:01:47"]
[BlackClock "0:02:14"]

1. e4 {[%clk 0:03:00]}  c5 {[%clk 0:03:00]} 2. Nf3 {[%clk 0:02:59]}  Nc6 {[%clk 0:03:00]} 3. d4 {[%clk 0:02:59]}  cxd4 {[%clk 0:03:01]} 4. Nxd4 {[%clk 0:02:59]}  g6 {[%clk 0:03:01]} 5. Nc3 {[%clk 0:02:59]}  Bg7 {[%clk 0:03:01]} 6. Be3 {[%clk 0:03:00]}  Nf6 {[%clk 0:03:01]} 7. Bc4 {[%clk 0:03:01]}  O-O {[%clk 0:03:00]} 8. Bb3 {[%clk 0:03:01]}  Re8 {[%clk 0:03:00]} 9. O-O {[%clk 0:02:56]}  d6 {[%clk 0:02:56]} 10. a3 {[%clk 0:02:39]}  Ng4 {[%clk 0:02:55]} 11. Nxc6 {[%clk 0:02:31]}  bxc6 {[%clk 0:02:55]} 12. Qf3 {[%clk 0:02:28]}  Rf8 {[%clk 0:02:43]} 13. Bg5 {[%clk 0:02:16]}  Qa5 {[%clk 0:02:39]} 14. Bxe7 {[%clk 0:02:10]}  Qe5 {[%clk 0:02:39]} 15. Bxd6 {[%clk 0:01:52]}  Qxd6 {[%clk 0:02:38]} 16. g3 {[%clk 0:01:52]}  Ne5 {[%clk 0:02:36]} 17. Qe2 {[%clk 0:01:53]}  Bh3 {[%clk 0:02:27]} 18. Rfd1 {[%clk 0:01:51]}  Qc5 {[%clk 0:02:19]} 19. Na4 {[%clk 0:01:47]}  Qe7 {[%clk 0:02:15]} 20. f4 {[%clk 0:01:47]}  Bg4 {[%clk 0:02:14]} 0-1


[Site "https://www.chess.com"]

[Event "Titled Tuesday Blitz March 07 Early 2023"]
[White "Zarnicki, Pablo"]
[Black "Larina, Maria"]
[WhiteFideId "100137"]
[BlackFideId "24113182"]
[WhiteElo "2468"]
[BlackElo "1848"]
[Result "1-0"]
[Round "10"]
[TimeControl "180+2"]
[Date "2023.03.07"]
[WhiteClock "0:00:30"]
[BlackClock "0:00:10"]

1. e4 {[%clk 0:03:00]}  c6 {[%clk 0:02:59]} 2. d4 {[%clk 0:03:00]}  d5 {[%clk 0:03:00]} 3. e5 {[%clk 0:03:00]}  Bf5 {[%clk 0:02:59]} 4. h4 {[%clk 0:02:59]}  h5 {[%clk 0:02:59]} 5. Bd3 {[%clk 0:02:59]}  Bxd3 {[%clk 0:02:58]} 6. Qxd3 {[%clk 0:02:59]}  e6 {[%clk 0:02:59]} 7. Nf3 {[%clk 0:02:59]}  Ne7 {[%clk 0:02:57]} 8. c3 {[%clk 0:02:51]}  Nd7 {[%clk 0:02:57]} 9. Nbd2 {[%clk 0:02:50]}  Ng6 {[%clk 0:02:53]} 10. Nb3 {[%clk 0:02:49]}  a5 {[%clk 0:02:46]} 11. Bg5 {[%clk 0:02:43]}  Qb6 {[%clk 0:02:42]} 12. O-O {[%clk 0:02:43]}  a4 {[%clk 0:02:41]} 13. Nbd2 {[%clk 0:02:43]}  c5 {[%clk 0:02:08]} 14. Rfe1 {[%clk 0:02:33]}  c4 {[%clk 0:02:03]} 15. Qc2 {[%clk 0:02:08]}  Be7 {[%clk 0:01:59]} 16. g3 {[%clk 0:02:05]}  O-O {[%clk 0:01:52]} 17. Bxe7 {[%clk 0:02:02]}  Nxe7 {[%clk 0:01:51]} 18. Ng5 {[%clk 0:02:03]}  Ng6 {[%clk 0:01:32]} 19. Rab1 {[%clk 0:01:47]}  Rfc8 {[%clk 0:01:30]} 20. Qd1 {[%clk 0:01:45]}  Ndf8 {[%clk 0:01:15]} 21. Qxh5 {[%clk 0:01:44]}  a3 {[%clk 0:01:10]} 22. b3 {[%clk 0:01:41]}  cxb3 {[%clk 0:01:10]} 23. Rxb3 {[%clk 0:01:41]}  Qa6 {[%clk 0:01:03]} 24. Reb1 {[%clk 0:01:40]}  Rc7 {[%clk 0:01:02]} 25. Qf3 {[%clk 0:01:31]}  Rac8 {[%clk 0:00:57]} 26. h5 {[%clk 0:01:28]}  Nh8 {[%clk 0:00:54]} 27. h6 {[%clk 0:01:21]}  gxh6 {[%clk 0:00:54]} 28. Nh3 {[%clk 0:01:20]}  Nfg6 {[%clk 0:00:46]} 29. c4 {[%clk 0:01:07]}  dxc4 {[%clk 0:00:45]} 30. Rxa3 {[%clk 0:01:07]}  Qc6 {[%clk 0:00:39]} 31. Ne4 {[%clk 0:01:07]}  Kg7 {[%clk 0:00:31]} 32. Qf6+ {[%clk 0:01:01]}  Kg8 {[%clk 0:00:23]} 33. Nd6 {[%clk 0:00:57]}  Rf8 {[%clk 0:00:20]} 34. Rc3 {[%clk 0:00:50]}  Qa4 {[%clk 0:00:17]} 35. Nf4 {[%clk 0:00:49]}  Qxa2 {[%clk 0:00:16]} 36. Nh5 {[%clk 0:00:31]}  Qxb1+ {[%clk 0:00:10]} 37. Kh2 {[%clk 0:00:30]} 1-0


[Site "https://www.chess.com"]

[Event "Titled Tuesday Blitz March 07 Early 2023"]
[White "Fiorito, Francisco"]
[Black "Devaev, Alexander"]
[WhiteFideId "180165"]
[BlackFideId "4169395"]
[WhiteElo "2341"]
[BlackElo "2225"]
[Result "1-0"]
[Round "10"]
[TimeControl "180+2"]
[Date "2023.03.07"]
[WhiteClock "0:00:43"]
[BlackClock "0:00:02"]

1. d4 {[%clk 0:03:00]}  Nf6 {[%clk 0:02:55]} 2. Nc3 {[%clk 0:03:00]}  d5 {[%clk 0:02:54]} 3. Bf4 {[%clk 0:03:00]}  a6 {[%clk 0:02:53]} 4. e3 {[%clk 0:03:00]}  Nbd7 {[%clk 0:02:53]} 5. Nf3 {[%clk 0:02:59]}  c5 {[%clk 0:02:53]} 6. dxc5 {[%clk 0:02:55]}  Nxc5 {[%clk 0:02:51]} 7. Be2 {[%clk 0:02:55]}  Bg4 {[%clk 0:02:45]} 8. O-O {[%clk 0:02:55]}  e6 {[%clk 0:02:45]} 9. h3 {[%clk 0:02:53]}  Bh5 {[%clk 0:02:45]} 10. a3 {[%clk 0:02:52]}  Be7 {[%clk 0:02:42]} 11. Ne5 {[%clk 0:02:51]}  Bxe2 {[%clk 0:02:41]} 12. Qxe2 {[%clk 0:02:52]}  O-O {[%clk 0:02:42]} 13. Rfd1 {[%clk 0:02:52]}  Rc8 {[%clk 0:02:34]} 14. Rab1 {[%clk 0:02:39]}  Bd6 {[%clk 0:02:23]} 15. Na2 {[%clk 0:02:29]}  Qc7 {[%clk 0:02:18]} 16. Nd3 {[%clk 0:02:22]}  Bxf4 {[%clk 0:02:13]} 17. Nxf4 {[%clk 0:02:18]}  Rfd8 {[%clk 0:02:11]} 18. c4 {[%clk 0:02:16]}  d4 {[%clk 0:01:29]} 19. exd4 {[%clk 0:02:13]}  Qxf4 {[%clk 0:01:18]} 20. dxc5 {[%clk 0:02:13]}  Ne4 {[%clk 0:01:18]} 21. b4 {[%clk 0:02:04]}  h6 {[%clk 0:01:15]} 22. f3 {[%clk 0:01:56]}  Ng3 {[%clk 0:00:57]} 23. Qc2 {[%clk 0:01:50]}  Nf5 {[%clk 0:00:42]} 24. Qe4 {[%clk 0:01:28]}  Qg3 {[%clk 0:00:40]} 25. Nc3 {[%clk 0:01:20]}  Nh4 {[%clk 0:00:30]} 26. Qg4 {[%clk 0:01:14]}  Qe5 {[%clk 0:00:23]} 27. Ne4 {[%clk 0:01:10]}  Nf5 {[%clk 0:00:20]} 28. Qh5 {[%clk 0:01:03]}  Qf4 {[%clk 0:00:17]} 29. Qg4 {[%clk 0:00:52]}  Qe3+ {[%clk 0:00:17]} 30. Kh2 {[%clk 0:00:51]}  Qxa3 {[%clk 0:00:18]} 31. Rxd8+ {[%clk 0:00:45]}  Rxd8 {[%clk 0:00:18]} 32. b5 {[%clk 0:00:46]}  Ne3 {[%clk 0:00:11]} 33. Qh4 {[%clk 0:00:46]}  Rd2 {[%clk 0:00:11]} 34. Nxd2 {[%clk 0:00:45]}  Qa2 {[%clk 0:00:10]} 35. Qd8+ {[%clk 0:00:44]}  Kh7 {[%clk 0:00:09]} 36. c6 {[%clk 0:00:45]}  bxc6 {[%clk 0:00:07]} 37. bxc6 {[%clk 0:00:45]}  Qa5 {[%clk 0:00:07]} 38. Qd3+ {[%clk 0:00:45]}  Nf5 {[%clk 0:00:05]} 39. Re1 {[%clk 0:00:42]}  Qc7+ {[%clk 0:00:04]} 40. Kh1 {[%clk 0:00:42]}  Qxc6 {[%clk 0:00:05]} 41. g4 {[%clk 0:00:43]}  Qd6 {[%clk 0:00:02]} 42. Qxd6 {[%clk 0:00:43]} 1-0


[Site "https://www.chess.com"]

[Event "Titled Tuesday Blitz March 07 Early 2023"]
[White "Mazurkiewicz, Michal"]
[Black "Vlassov, Nikolai"]
[WhiteFideId "1124943"]
[BlackFideId "4103360"]
[WhiteElo "2054"]
[BlackElo "2324"]
[Result "0-1"]
[Round "10"]
[TimeControl "180+2"]
[Date "2023.03.07"]
[WhiteClock "0:00:09"]
[BlackClock "0:00:43"]

1. e4 {[%clk 0:02:59]}  Nc6 {[%clk 0:02:55]} 2. Nf3 {[%clk 0:02:59]}  Nf6 {[%clk 0:02:54]} 3. d3 {[%clk 0:02:59]}  d5 {[%clk 0:02:54]} 4. Nbd2 {[%clk 0:02:59]}  e5 {[%clk 0:02:53]} 5. exd5 {[%clk 0:02:56]}  Qxd5 {[%clk 0:02:52]} 6. g3 {[%clk 0:02:57]}  Bc5 {[%clk 0:02:48]} 7. Bg2 {[%clk 0:02:57]}  O-O {[%clk 0:02:47]} 8. O-O {[%clk 0:02:57]}  a5 {[%clk 0:02:47]} 9. Qe2 {[%clk 0:02:52]}  Bg4 {[%clk 0:02:45]} 10. c3 {[%clk 0:02:52]}  Rad8 {[%clk 0:02:45]} 11. Ne4 {[%clk 0:02:45]}  Be7 {[%clk 0:02:30]} 12. Nxf6+ {[%clk 0:02:18]}  Bxf6 {[%clk 0:02:29]} 13. Rd1 {[%clk 0:02:19]}  Rfe8 {[%clk 0:02:27]} 14. h3 {[%clk 0:02:17]}  Bh5 {[%clk 0:02:19]} 15. g4 {[%clk 0:02:15]}  Bg6 {[%clk 0:02:17]} 16. g5 {[%clk 0:01:41]}  Be7 {[%clk 0:02:13]} 17. Ne1 {[%clk 0:00:52]}  Qb5 {[%clk 0:02:02]} 18. Be3 {[%clk 0:00:52]}  e4 {[%clk 0:01:46]} 19. Bxe4 {[%clk 0:00:19]}  Bxe4 {[%clk 0:01:43]} 20. c4 {[%clk 0:00:19]}  Qf5 {[%clk 0:01:02]} 21. dxe4 {[%clk 0:00:18]}  Qxh3 {[%clk 0:01:01]} 22. Qf3 {[%clk 0:00:17]}  Qe6 {[%clk 0:00:57]} 23. Rd5 {[%clk 0:00:17]}  Ne5 {[%clk 0:00:56]} 24. Qe2 {[%clk 0:00:15]}  c6 {[%clk 0:00:50]} 25. Rxd8 {[%clk 0:00:15]}  Bxd8 {[%clk 0:00:46]} 26. b3 {[%clk 0:00:16]}  a4 {[%clk 0:00:45]} 27. Rd1 {[%clk 0:00:10]}  Bc7 {[%clk 0:00:45]} 28. Kg2 {[%clk 0:00:11]}  Ng6 {[%clk 0:00:44]} 29. Qf3 {[%clk 0:00:09]}  Nh4+ {[%clk 0:00:43]} 0-1


[Site "https://www.chess.com"]

[Event "Titled Tuesday Blitz March 07 Early 2023"]
[White "Mikhalsky, Vladimir"]
[Black "Bews, Steven"]
[WhiteFideId "14144352"]
[BlackFideId "2400529"]
[WhiteElo "2272"]
[BlackElo "2580"]
[Result "0-1"]
[Round "10"]
[TimeControl "180+2"]
[Date "2023.03.07"]
[WhiteClock "0:00:32"]
[BlackClock "0:01:53"]

1. e4 {[%clk 0:02:57]}  c6 {[%clk 0:02:59]} 2. d3 {[%clk 0:02:55]}  d5 {[%clk 0:02:59]} 3. Nd2 {[%clk 0:02:55]}  e5 {[%clk 0:02:59]} 4. Ngf3 {[%clk 0:02:55]}  Bd6 {[%clk 0:03:00]} 5. g3 {[%clk 0:02:54]}  Nf6 {[%clk 0:03:00]} 6. Bg2 {[%clk 0:02:54]}  O-O {[%clk 0:03:01]} 7. O-O {[%clk 0:02:55]}  h6 {[%clk 0:02:59]} 8. c3 {[%clk 0:02:46]}  Re8 {[%clk 0:02:58]} 9. a4 {[%clk 0:02:44]}  a5 {[%clk 0:02:58]} 10. h3 {[%clk 0:02:36]}  Na6 {[%clk 0:02:53]} 11. Qe2 {[%clk 0:02:32]}  Nc5 {[%clk 0:02:50]} 12. Re1 {[%clk 0:02:25]}  b6 {[%clk 0:02:50]} 13. exd5 {[%clk 0:02:07]}  cxd5 {[%clk 0:02:48]} 14. c4 {[%clk 0:02:07]}  e4 {[%clk 0:02:46]} 15. dxe4 {[%clk 0:02:05]}  dxe4 {[%clk 0:02:47]} 16. Nh2 {[%clk 0:01:57]}  Ba6 {[%clk 0:02:33]} 17. b3 {[%clk 0:01:53]}  e3 {[%clk 0:02:31]} 18. Ndf1 {[%clk 0:01:49]}  exf2+ {[%clk 0:02:28]} 19. Qxf2 {[%clk 0:01:46]}  Rxe1 {[%clk 0:02:21]} 20. Qxe1 {[%clk 0:01:46]}  Ra7 {[%clk 0:02:21]} 21. Nd2 {[%clk 0:01:37]}  Re7 {[%clk 0:02:18]} 22. Qf1 {[%clk 0:01:37]}  Be5 {[%clk 0:02:18]} 23. Ra2 {[%clk 0:01:31]}  Bxg3 {[%clk 0:02:15]} 24. Nhf3 {[%clk 0:01:27]}  Bb7 {[%clk 0:02:10]} 25. Ba3 {[%clk 0:01:24]}  Re3 {[%clk 0:02:03]} 26. Bxc5 {[%clk 0:01:18]}  bxc5 {[%clk 0:02:04]} 27. Kh1 {[%clk 0:01:08]}  Nh5 {[%clk 0:02:01]} 28. Ng1 {[%clk 0:01:05]}  Bb8 {[%clk 0:01:54]} 29. Ne2 {[%clk 0:00:32]}  Rxe2 {[%clk 0:01:53]} 0-1


[Site "https://www.chess.com"]